Cogmind - Beta 11 X5 @@@ ROGUE MODE // 2021.06.12 @ 19:07:21 Player: Runia Result: Destroyed by H-66 Slayer with Gauss Rifle Performance ------------- Evolutions (4) 2000 Regions Visited (8) 1600 Robots Destroyed (77) 385 Value Destroyed (3038) 3038 Prototype IDs (8) 160 Alien Tech Used (0) 0 Bonus (-451) -451 TOTAL SCORE: 6732 Bonus ------- High Alert Combat Kills 12 Follower Combat Kills 120 Friendly Fire -583 Cogmind --------- Core Integrity 0/850 Matter 280/300 Energy 70/100 System Corruption 5% Temperature Cool (0) Movement Core (850) Ox16 Location -6/Lower Caves Parts ------- > --- POWER (2) -------- (None) > --- PROPULSION (5) --- (None) > --- UTILITY (6) ------ High-capacity Storage Unit Advanced Signal Interpreter Improved Melee Analysis Suite Improved Light Armor Plating Improved Light Armor Plating > --- WEAPON (2) ------- Gatling Laser Dirty Datajack > --- INVENTORY (20) --- Medium Treads Trap Scanner Improved Melee Analysis Suite Improved Melee Analysis Suite Microactuators Improved Actuator Array Advanced ECM Suite Improved Shield Generator Improved Field Recycling Unit (0) Precision Grenade Launcher Dirty Datajack (20) Dirty Datajack (20) Dirty Datajack (18) Improved Datajack Dirty Bomb Trap Dirty Bomb Trap Peak State ------------ > --- POWER ------------ Micro Nuclear Core Light Fission Core > --- PROPULSION ------- Carbon-fiber Leg Carbon-fiber Leg Improved Carbon-fiber Leg Flexi-carbon Leg Flexi-carbon Leg > --- UTILITY ---------- High-capacity Storage Unit Advanced Terrain Scan Processor Improved Melee Analysis Suite Layered Medium Armor Plating Powered Armor Hacking Suite > --- WEAPON ----------- Ion Cannon Spear > --- INVENTORY -------- Carbon-fiber Leg Carbon-fiber Leg Flexi-carbon Leg Large Battery Trap Scanner Sensor Array Improved Terrain Scanner Improved Melee Analysis Suite Improved Melee Analysis Suite Microactuators Transmission Jammer Advanced ECM Suite Improved Light Armor Plating Improved Light Armor Plating Improved Light Armor Plating Improved Shield Generator Gatling Laser Ion Cannon Precision Grenade Launcher Improved Datajack [Rating: 63] Favorites ----------- Power Improved Ion Engine Engine Improved Ion Engine Power Core Light Fission Core Reactor Light Antimatter Reactor Propulsion Carbon-fiber Leg Treads Light Treads Leg Carbon-fiber Leg Wheel Wheel Utility High-capacity Storage Unit Device Improved Terrain Scanner Storage High-capacity Storage Unit Processor Advanced Terrain Scan Processor Hackware Hacking Suite Protection Improved Light Armor Plating Weapon Spear Energy Gun Medium Laser Energy Cannon Ion Cannon Ballistic Gun Assault Rifle Launcher Grenade Launcher Piercing Weapon Spear Special Melee Weapon Dirty Datajack Build | -11 -10 -10 -10 -9 -8 -7 -6 -6 ------- Run | Scr Mat Min Exi Min Mat Fac Fac Low Slots Evolved 8 | . . . . . 4 2 2 . Power 1 | . . . . . . 1 . . Propulsion 3 | . . . . . 2 . 1 . Utility 4 | . . . . . 2 1 1 . Weapon . | . . . . . . . . . Parts Attached 120 | . 6 7 . 3 30 24 21 29 Power 14 | . 1 1 . . 2 3 4 3 Engine 6 | . 1 1 . . 2 1 . 1 Core 7 | . . . . . . 2 4 1 Reactor 1 | . . . . . . . . 1 Propulsion 37 | . 2 1 . 1 9 7 10 7 Treads 8 | . 1 1 . . 5 1 . . Leg 23 | . . . . . . 6 10 7 Wheel 6 | . 1 . . 1 4 . . . Hover . | . . . . . . . . . Flight . | . . . . . . . . . Utility 34 | . 1 . . . 10 8 6 9 Device 15 | . . . . . 4 4 2 5 Storage 2 | . 1 . . . . . . 1 Processor 3 | . . . . . . 1 1 1 Hackware 2 | . . . . . 2 . . . Protection 12 | . . . . . 4 3 3 2 Artifact . | . . . . . . . . . Weapon 35 | . 2 5 . 2 9 6 1 10 Energy Gun 11 | . . 2 . 1 6 . . 2 Energy Cannon 3 | . . . . . 1 1 1 . Ballistic Gun 4 | . 1 1 . . 2 . . . Ballistic Cannon . | . . . . . . . . . Launcher 6 | . 1 2 . 1 . 1 . 1 Special Weapon . | . . . . . . . . . Impact Weapon . | . . . . . . . . . Slashing Weapon . | . . . . . . . . . Piercing Weapon 5 | . . . . . . 4 . 1 Special Melee Weapon 6 | . . . . . . . . 6 Unidentified Prototypes 2 | . . . . . 1 1 . . Parts Lost 61 | . 1 2 . . 17 9 9 23 Power 10 | . 1 . . . 2 2 1 4 Propulsion 26 | . . 1 . . 8 3 5 9 Utility 12 | . . . . . 2 2 2 6 Weapon 13 | . . 1 . . 5 2 1 4 Highest Loss Streak 8 | . 1 1 . . 7 4 7 8 Average Slot Usage (%) 90 | . 84 84 85 85 94 94 96 85 Engine 8 | . 13 14 14 14 8 13 . 3 Core 3 | . . . . . . 1 12 6 Treads 9 | . 14 13 14 14 19 9 . . Leg 13 | . . . . . . 15 29 27 Wheel 6 | . 14 14 14 14 13 . . . Device 8 | . . . . . 16 9 4 8 Storage 8 | . 14 14 14 14 9 7 6 6 Processor 6 | . . . . . . 4 13 15 Hackware 4 | . . . . . 2 9 6 5 Protection 3 | . . . . . 7 4 7 . Energy Gun 4 | . 14 12 14 13 6 . . . Energy Cannon 2 | . . . . . 2 3 5 . Ballistic Gun 4 | . 11 13 14 14 8 . . . Piercing Weapon 4 | . . . . . . 10 6 5 Naked Turns . | . . . . . . . . . Heaviest Build 79 | 12 48 50 49 50 62 73 79 64 Greatest Support 88 | 20 10 10 10 10 80 60 88 85 Greatest Overweight (x) 15 | . 4 4 4 4 6 3 1 15 Average Overweight (x) 1 | . 3 4 4 4 2 1 . . Largest Inventory Capacity 20 | 8 20 20 20 20 20 20 20 20 Average Capacity 19 | 8 17 20 20 20 20 20 20 20 Most Carried 20 | 6 14 16 16 17 20 20 20 20 Average Carried 17 | 6 10 13 16 16 18 19 19 19 Final Capacity 20 | 8 20 20 20 20 20 20 20 20 Final Carried 20 | 6 14 16 16 16 20 19 20 16 Class Distribution -------------------- 50% | Scavenger-Mutant 38% | Mutant 8% | Hacker-Mutant 3% | Scavenger-Assassin Dominant Class ---------------- Mutant | -10/Materials Mutant | -10/Mines Mutant | -10/Exiles Mutant | -9/Mines Scavenger-Mutant | -8/Materials Scavenger-Mutant | -7/Factory Scavenger-Mutant | -6/Factory Scavenger-Mutant | -6/Lower Caves Resources | -11 -10 -10 -10 -9 -8 -7 -6 -6 ----------- Run | Scr Mat Min Exi Min Mat Fac Fac Low Matter Collected 1526 | 200 45 202 . 37 340 264 175 263 Remotely . | . . . . . . . . . Salvage Created 3355 | . 112 51 . 17 951 577 633 1014 Parts 173 | . 11 1 . 3 49 35 39 35 Haulers Intercepted . | . . . . . . . . . Recyclers Shooed 2 | . . . . . 1 . 1 . Parts Field Recycled . | . . . . . . . . . Retrieved Matter . | . . . . . . . . . Parts Self-Destructed 36 | . . . . . . . . 36 Prevented . | . . . . . . . . . Kills | -11 -10 -10 -10 -9 -8 -7 -6 -6 ------- Run | Scr Mat Min Exi Min Mat Fac Fac Low Combat Hostiles Destroyed 67 | . 5 5 . 1 20 10 12 14 Melee 30 | . . . . . . 10 12 8 Guns 17 | . 2 . . . 14 . . 1 Cannons 3 | . . . . . 3 . . . AOE 14 | . 3 5 . 1 . . . 5 Classes Destroyed 15 | . 4 1 . 1 4 2 1 2 Worker 4 | . 1 . . . 1 1 1 . Tunneler 1 | . . . . 1 . . . . Minesweeper 1 | . . . . . . . . 1 Mechanic 1 | . . . . . . . 1 . Operator 1 | . . . . . 1 . . . Watcher 2 | . 1 . . . 1 . . . Swarmer 12 | . 3 . . 1 4 . 3 1 Grunt 33 | . 2 2 . . 9 6 5 9 Brawler 2 | . . . . . . 1 . 1 Duelist 2 | . . . . . 1 . 1 . Sentry 7 | . . . . . 5 1 . 1 Specialist 3 | . . . . . . . . 3 Hunter 6 | . . . . . 1 1 3 1 Programmer 2 | . . . . . . 1 . 1 Assembled 3 | . . 3 . . . . . . Best Kill Streak 5 | . 4 3 . 1 4 4 5 5 Combat Bots Only 5 | . 3 3 . 1 3 4 4 5 Max Kills in Single Turn 3 | . 2 3 . 1 1 1 1 2 Gunslinging . | . . . . . . . . . Exploded 3 | . 2 3 . 1 . . . 2 Melee 1 | . . . . . . 1 1 1 Uniques/NPCs Destroyed . | . . . . . . . . . Combat | -11 -10 -10 -10 -9 -8 -7 -6 -6 -------- Run | Scr Mat Min Exi Min Mat Fac Fac Low Damage Taken 8372 | . 239 332 . . 2056 1307 2231 2207 Core 1391 | . 39 23 . . 242 232 193 662 Absorbed by Shields 47 | . . . . . . . . 47 Core Remaining (%) 74 | 100 . . . 75 56 66 . . Volleys Fired 126 | . 13 10 . 3 96 . . 4 Largest 2 | . 2 2 . 2 2 . . 1 Hottest 125 | . 70 70 . 70 125 . . 80 Shots Fired 233 | . 23 14 . 5 186 1 . 4 Gun 190 | . 20 8 . 4 156 . . 2 Cannon 31 | . . . . . 30 1 . . Launcher 12 | . 3 6 . 1 . . . 2 Special . | . . . . . . . . . Kinetic 114 | . 10 4 . 2 98 . . . Thermal 91 | . 10 4 . 2 72 1 . 2 Explosive 12 | . 3 6 . 1 . . . 2 Electromagnetic 16 | . . . . . 16 . . . Robot Hit Streak 22 | . 2 5 . 6 22 . . 3 Robot Miss Streak 5 | . 2 4 . . 5 . . 3 Penetration Max . | . . . . . . . . . Secondary Targets 2 | . . . . . 2 . . . Max Gunslinging Chain 1 | . . . . . 1 . . . Shots Hit Robots 285 | . 10 9 . 1 129 36 43 57 Core Hits 166 | . 10 14 . 2 51 18 29 42 Critical Kills 2 | . . . . . 2 . . . Critical Parts Destroyed 1 | . . . . . 1 . . . Critical Strikes 11 | . . . . . 5 . 5 1 Burn 2 | . . . . . 2 . . . Meltdown 2 | . . . . . 2 . . . Destroy 1 | . . . . . 1 . . . Puncture 6 | . . . . . . . 5 1 Melee Attacks 182 | . . . . . . 44 73 65 Impact . | . . . . . . . . . Slashing . | . . . . . . . . . Piercing 182 | . . . . . . 44 73 65 Sneak Attacks 20 | . . . . . . 2 4 14 Combat Hostiles 10 | . . . . . . . . 10 Follow-up Attacks 4 | . . . . . . 4 . . Damage Inflicted 7463 | . 354 484 . 59 1719 1075 1475 2297 Guns 1358 | . 136 76 . 13 1123 . . 10 Cannons 507 | . . . . . 507 . . . Explosions 1068 | . 218 408 . 46 89 . . 307 Melee 4530 | . . . . . . 1075 1475 1980 Ramming . | . . . . . . . . . Kinetic 707 | . 72 50 . . 585 . . . Thermal 1010 | . 64 26 . 13 897 . . 10 Explosive 1036 | . 218 408 . 46 57 . . 307 Electromagnetic 180 | . . . . . 180 . . . Impact . | . . . . . . . . . Slashing . | . . . . . . . . . Piercing 4530 | . . . . . . 1075 1475 1980 Highest Corruption 5 | . . . . . . 5 . 5 Average Corruption 4 | . . . . . . 4 . 3 Corruption Purged . | . . . . . . . . . Effects 37 | . . . . . . 22 . 15 Message Errors 10 | . . . . . . 6 . 4 Matter Fused 7 | . . . . . . 4 . 3 Heat Flow Errors 8 | . . . . . . 3 . 5 Energy Discharges 4 | . . . . . . 2 . 2 Parts Rejected 1 | . . . . . . 1 . . Data Loss (minor) 6 | . . . . . . 5 . 1 Misfires 1 | . . . . . . 1 . . Overload Shots . | . . . . . . . . . Overflow Damage 251 | . . . . . 73 54 20 104 Projectiles 17 | . . . . . 17 . . . Explosions 66 | . . . . . 56 . . 10 Melee 168 | . . . . . . 54 20 94 Knockbacks . | . . . . . . . . . Impact . | . . . . . . . . . Kinetic . | . . . . . . . . . Secondary . | . . . . . . . . . Self-Inflicted Damage 337 | . 7 70 . . 150 . . 110 Shots 10 | . 1 5 . . 2 . . 2 Rammed . | . . . . . . . . . Targets Rammed . | . . . . . . . . . Kicked . | . . . . . . . . . Crushed . | . . . . . . . . . Highest Temperature 255 | . 135 27 . 9 187 243 8 255 Average Temperature 60 | . 64 11 . 6 43 87 6 98 Received Heat Transfer 1964 | . 93 68 . . 531 567 405 300 Effects 2 | . . . . . . . . 2 Interference 2 | . . . . . . . . 2 Siege Activations . | . . . . . . . . . Robots Corrupted . | . . . . . . . . . Combat Hostiles . | . . . . . . . . . Parts Fried . | . . . . . . . . . Impact Corruptions . | . . . . . . . . . Robots Melted 3 | . . . . . 3 . . . Combat Hostiles 3 | . . . . . 3 . . . Parts Melted 9 | . . . . 2 7 . . . Heat Transferred 2221 | . 185 74 . 37 1900 . . 25 Parts Sabotaged . | . . . . . . . . . Parts Stolen . | . . . . . . . . . Parts Stripped . | . . . . . . . . . Power Chain Reactions 1 | . . . . . 1 . . . Missiles Intercepted . | . . . . . . . . . Alert | -11 -10 -10 -10 -9 -8 -7 -6 -6 ------- Run | Scr Mat Min Exi Min Mat Fac Fac Low Peak Influence 654 | . 167 119 . 124 392 174 654 . Initial 64 | . . 64 . . 48 2 14 . Average 107 | . 99 92 . 109 164 52 96 . Maximum Alert Level 2 | . . . . . 1 . 2 . Low Security (%) 87 | 100 100 100 . 100 68 100 85 . Level 1 11 | . . . . . 31 . 8 . Level 2 1 | . . . . . . . 5 . Level 3 . | . . . . . . . . . Level 4 . | . . . . . . . . . Level 5 . | . . . . . . . . . High Security . | . . . . . . . . . Max Security . | . . . . . . . . . Squads Dispatched 5 | . . . . . 2 2 1 . Investigation . | . . . . . . . . . Extermination 1 | . . . . . . 1 . . Reinforcement 4 | . . . . . 2 1 1 . Assault . | . . . . . . . . . Garrison . | . . . . . . . . . Intercept . | . . . . . . . . . Construction Impeded 1 | . . . . . 1 . . . Haulers Reinforced . | . . . . . . . . . Cargo Convoy Interrupts 1 | . . . . . . . 1 . Stealth | -11 -10 -10 -10 -9 -8 -7 -6 -6 --------- Run | Scr Mat Min Exi Min Mat Fac Fac Low Distress Signals 7 | . . . . . 5 . 2 . Communications Jammed 16 | . . . . . 16 . . . Distress Signals 16 | . . . . . 16 . . . Times Spotted 121 | . 8 7 . 4 38 14 22 28 Peak Tracking Total 6 | . 2 5 . 4 6 6 6 4 Tactical Retreats 9 | . . . . . 4 1 . 4 Traps | -11 -10 -10 -10 -9 -8 -7 -6 -6 ------- Run | Scr Mat Min Exi Min Mat Fac Fac Low Traps Triggered 2 | . 1 . . . . 1 . . Indirectly . | . . . . . . . . . Trap Hack Attempts . | . . . . . . . . . Triggered . | . . . . . . . . . Disarmed . | . . . . . . . . . Reprogrammed . | . . . . . . . . . Reused 2 | . . . . . 2 . . . Traps Extracted . | . . . . . . . . . Installed 3 | . . . . . 3 . . . Triggered 3 | . . . . . 2 . 1 . Machines | -11 -10 -10 -10 -9 -8 -7 -6 -6 ---------- Run | Scr Mat Min Exi Min Mat Fac Fac Low Machines Disabled 10 | . 1 . . 1 4 . 3 1 Max in Single Turn 2 | . 1 . . 1 2 . 1 1 Garrison Access 1 | . . . . . . . 1 . Machines Sabotaged . | . . . . . . . . . Garrisons Compromised 1 | . . . . . . . 1 . Overloaded Fab Kills . | . . . . . . . . . Fab Network Shutdowns . | . . . . . . . . . Hacking | -11 -10 -10 -10 -9 -8 -7 -6 -6 --------- Run | Scr Mat Min Exi Min Mat Fac Fac Low Machines Accessed 18 | . . . 1 . 7 3 6 1 Terminals 11 | . . . . . 5 2 4 . Fabricators 1 | . . . . . . . 1 . Repair Stations 1 | . . . . . 1 . . . Recycling Units . | . . . . . . . . . Scanalyzers 1 | . . . . . 1 . . . Garrison Access 2 | . . . . . . 1 1 . Total Hacks 45 | . . . 1 . 25 5 13 1 Successful 24 | . . . 1 . 16 1 5 1 Failed 20 | . . . . . 8 4 8 . Catastrophic 2 | . . . . . . 1 1 . Database Lockouts 1 | . . . . . 1 . . . Manual 20 | . . . . . 13 . 6 1 Terminals 36 | . . . . . 22 4 10 . Fabricators 2 | . . . . . . . 2 . Repair Stations 2 | . . . . . 2 . . . Recycling Units . | . . . . . . . . . Scanalyzers 1 | . . . . . 1 . . . Garrison Access 2 | . . . . . . 1 1 . Terminal Hacks 19 | . . . 1 . 13 1 3 1 Record 1 | . . . 1 . . . . . Part Schematic 3 | . . . . . 2 . 1 . Prototype ID Bank 3 | . . . . . 2 . 1 . Open Door 1 | . . . . . . . . 1 Branch Access Points 2 | . . . . . 1 1 . . Emergency Access Points 1 | . . . . . 1 . . . Terminal Index 1 | . . . . . 1 . . . Alert Level 3 | . . . . . 2 . 1 . Unreport Threat 2 | . . . . . 2 . . . Locate Traps 1 | . . . . . 1 . . . Zone Layout 1 | . . . . . 1 . . . Fabricator Hacks . | . . . . . . . . . Repair Station Hacks 1 | . . . . . 1 . . . Scan Component 1 | . . . . . 1 . . . Recycling Unit Hacks . | . . . . . . . . . Scanalyzer . | . . . . . . . . . Garrison Access Hacks 1 | . . . . . . . 1 . Seal Access 1 | . . . . . . . 1 . Unauthorized Hacks 3 | . . . . . 2 . 1 . Terminals 2 | . . . . . 2 . . . Botnet 2 | . . . . . 2 . . . Fabricators 1 | . . . . . . . 1 . Haulers 1 | . . . . . . . 1 . Repair Stations . | . . . . . . . . . Recycling Units . | . . . . . . . . . Scanalyzers . | . . . . . . . . . Garrison Access . | . . . . . . . . . Data Cores Recovered . | . . . . . . . . . Used . | . . . . . . . . . Hacking Detections 14 | . . . . . 6 3 5 . Full Trace Events . | . . . . . . . . . Feedback Events . | . . . . . . . . . Feedback Blocked . | . . . . . . . . . Robot Schematics Acquired . | . . . . . . . . . Robots Built . | . . . . . . . . . Matter . | . . . . . . . . . Time . | . . . . . . . . . Total Robot Build Rating . | . . . . . . . . . Part Schematics Acquired 3 | . . . . . 2 . 1 . Parts Built . | . . . . . . . . . Matter . | . . . . . . . . . Time . | . . . . . . . . . Total Part Build Rating . | . . . . . . . . . Parts Repaired . | . . . . . . . . . Time . | . . . . . . . . . Parts Recycled . | . . . . . . . . . Recycled Matter . | . . . . . . . . . Retrieved Matter . | . . . . . . . . . Retrieved Components . | . . . . . . . . . Parts Scanalyzed . | . . . . . . . . . Part Schematics Acquired . | . . . . . . . . . Parts Damaged . | . . . . . . . . . Bothacking | -11 -10 -10 -10 -9 -8 -7 -6 -6 ------------ Run | Scr Mat Min Exi Min Mat Fac Fac Low Used RIF Installer . | . . . . . . . . . Robots Hacked . | . . . . . . . . . Non-combat . | . . . . . . . . . Combat . | . . . . . . . . . Robot Hacks Applied . | . . . . . . . . . Relay Couplers Released . | . . . . . . . . . Robots Rewired . | . . . . . . . . . Allies Hacked . | . . . . . . . . . Hacks Repelled . | . . . . . . . . . Allies | -11 -10 -10 -10 -9 -8 -7 -6 -6 -------- Run | Scr Mat Min Exi Min Mat Fac Fac Low Total Allies 25 | . . 3 . . . . 18 4 Largest Group 18 | . . 3 3 3 3 . 18 1 Highest-Rated Group 731 | . . 40 40 40 40 . 731 47 Highest-Rated Ally 74 | . . 16 16 16 16 . 74 47 Total Orders . | . . . . . . . . . Ally Attacks 38 | . . . . 9 22 . 3 4 Total Damage 557 | . . . . 117 281 . 122 37 Kills 7 | . . . . 3 3 . 1 . Allies Corrupted . | . . . . . . . . . Allies Melted . | . . . . . . . . . Intel | -11 -10 -10 -10 -9 -8 -7 -6 -6 ------- Run | Scr Mat Min Exi Min Mat Fac Fac Low Robot Analysis Total . | . . . . . . . . . Derelict Logs Recovered 4 | . . 1 . 1 . . . 2 Drone Launches . | . . . . . . . . . Drone Recoveries . | . . . . . . . . . Exploration | -11 -10 -10 -10 -9 -8 -7 -6 -6 ------------- Run | Scr Mat Min Exi Min Mat Fac Fac Low Turns Passed 6228 | 4 237 468 294 320 1461 1221 814 1409 Spaces Moved 3112 | 4 140 292 211 211 768 463 393 630 Core 22 | . . . . . . . . 22 Treads 315 | . . . . . 136 179 . . Legs 1289 | 4 . . . . . 284 393 608 Wheels 1486 | . 140 292 211 211 632 . . . Hover . | . . . . . . . . . Flight . | . . . . . . . . . Fastest Speed 95 | 120 95 140 140 140 95 160 120 120 Average Speed 150 | 120 126 140 140 140 127 225 147 144 Slowest Speed 800 | 120 140 140 140 140 260 460 200 800 Overloaded Moves . | . . . . . . . . . Propulsion Burnouts . | . . . . . . . . . Robots Hopped . | . . . . . . . . . Cave-ins Triggered . | . . . . . . . . . Exploration Rate (%) 36 | 1 34 59 55 50 58 9 14 46 Regions Visited 8 Branch Regions 4 Pre-discovered Areas 1 | . . . 1 . . . . . Known Exits Taken 1 | . . . . 1 . . . . Unknown Exits Taken 7 | 1 1 1 1 . 1 1 1 . Scrap Searched 3 | . . 1 . 1 . . . 1 Spaces Dug 10 | . . . . . . . 7 3 Terrain Destroyed 131 | . 17 44 . 9 30 . 7 24 Melee 10 | . . . . . . . 7 3 Projectile 5 | . . . . . 5 . . . AOE 116 | . 17 44 . 9 25 . . 21 Terrain Rammed . | . . . . . . . . . Walls Destroyed . | . . . . . . . . . Machines Disabled . | . . . . . . . . . Actions | -11 -10 -10 -10 -9 -8 -7 -6 -6 --------- Run | Scr Mat Min Exi Min Mat Fac Fac Low Total 4222 | 3 176 335 210 230 1087 594 524 1063 Wait 540 | . 2 22 . 12 135 37 15 317 Move 3104 | 3 139 291 210 210 767 462 392 630 Hop . | . . . . . . . . . Pick Up 102 | . 12 5 . 1 38 20 13 13 Fast Attach 11 | . . . . . 3 3 2 3 Attach 57 | . . 3 . . 20 12 9 13 Detach . | . . . . . . . . . Swap 52 | . 6 4 . 3 7 9 10 13 Drop 50 | . 4 . . 1 18 12 10 5 Fire 126 | . 13 10 . 3 96 . . 4 Melee 177 | . . . . . . 39 73 65 Ram . | . . . . . . . . . Kick . | . . . . . . . . . Crush . | . . . . . . . . . Escape Stasis . | . . . . . . . . . Rewire . | . . . . . . . . . Trap 3 | . . . . . 3 . . . Miscellaneous . | . . . . . . . . . Route ------- -11/Scrapyard -10/Materials -10/Mines (discovered 2 exits: [*Mat] / *Exi) -10/Exiles -9/Mines (discovered 2 exits: *Mat x2) -8/Materials -7/Factory (discovered 5 exits: *Fac / Sto x2 / Low x2) -6/Factory -6/Lower Caves History --------- Turn | Location | Event 1 | -11/Scrapyard | Discovered new exit (range 1) 5 | -11/Scrapyard | Entered Materials 231 | -10/Materials | Discovered new exit (range 9) 242 | -10/Materials | Entered Mines 283 | -10/Mines | Assembled infested the area 310 | -10/Mines | Met 8R-AWN 313 | -10/Mines | Learned Materials stockpile data 322 | -10/Mines | Build established: Mutant 517 | -10/Mines | Found a hidden stash of uninstalled traps 591 | -10/Mines | Assisted by bots powering up and referring to "LRC-V3" 659 | -10/Mines | Discovered new exit (range 11) 699 | -10/Mines | Discovered new exit (range 5) 710 | -10/Mines | Entered Exiles 710 | -10/Exiles | Accompanied by 3 allies 744 | -10/Exiles | Welcomed by 8R-AWN 765 | -10/Exiles | Met EX-HEX 822 | -10/Exiles | Met EX-DEC 835 | -10/Exiles | Learned location of Zion (-7) 873 | -10/Exiles | Met EX-BIN 985 | -10/Exiles | Discovered new exit (range 14) 1004 | -10/Exiles | Entered Mines 1004 | -9/Mines | Accompanied by 3 allies 1091 | -9/Mines | Identified exit to Materials 1297 | -9/Mines | Discovered exit to Materials (range 14) 1324 | -9/Mines | Entered Materials 1324 | -8/Materials | Accompanied by 3 allies 1324 | -8/Materials | Evolved 4 slots: Propulsion x2, Utility x2 1771 | -8/Materials | Lost 7 parts (1p3n3w) 1933 | -8/Materials | Central database locked down 2031 | -8/Materials | Lost 3 parts (2n1u) 2084 | -8/Materials | Build established: Scavenger-Mutant 2562 | -8/Materials | Lost 6 parts (1p2n1u2w) 2658 | -8/Materials | Discovered new exit (range 15) 2729 | -8/Materials | Found Powered Armor 2731 | -8/Materials | Found Powered Armor 2763 | -8/Materials | Found Powered Armor 2785 | -8/Materials | Entered Factory 2785 | -7/Factory | Evolved 2 slots: Power x1, Utility x1 2899 | -7/Factory | Build established: Hacker-Mutant 3308 | -7/Factory | Lost 4 parts (2n1u1w) 3523 | -7/Factory | Identified exit to Storage 3523 | -7/Factory | Identified exit to Lower Caves 3650 | -7/Factory | Build established: Scavenger-Mutant 3768 | -7/Factory | Discovered new exit (range 16) 4006 | -7/Factory | Entered another Factory area 4006 | -6/Factory | Evolved 2 slots: Propulsion x1, Utility x1 4627 | -6/Factory | Lost 7 parts (1p3n2u1w) 4638 | -6/Factory | Spotted B-75 Beast 4774 | -6/Factory | Cargo convoy interrupted 4775 | -6/Factory | Discovered new exit (range 8) 4820 | -6/Factory | Entered Lower Caves 4859 | -6/Lower Caves | Lost 3 parts (1n1u1w) 4930 | -6/Lower Caves | Acquired the password to a Derelict Tinkerer's latest research 5191 | -6/Lower Caves | Spotted B-75 Beast 5741 | -6/Lower Caves | Caught by Unaware searching for contraband prototypes 5912 | -6/Lower Caves | Caught by Unaware searching for contraband prototypes 5964 | -6/Lower Caves | Lost 4 parts (2p2n) 5968 | -6/Lower Caves | Learned Factory terminal intel 6021 | -6/Lower Caves | Learned Factory garrison access intel 6025 | -6/Lower Caves | Attracted the attention of an 0b10 checkpoint 6043 | -6/Lower Caves | Core integrity fell below 50% 6076 | -6/Lower Caves | Lost 8 parts (1p4n2u1w) 6119 | -6/Lower Caves | Core integrity fell below 20% 6155 | -6/Lower Caves | Lost 3 parts (2u1w) 6219 | -6/Lower Caves | Build established: Mutant 6229 | -6/Lower Caves | Destroyed by H-66 Slayer with Gauss Rifle Last Messages --------------- X-72 Disruptor springs to life. X-72 Disruptor Mic. Fission Core critical detonation. Lrg. Battery destroyed. Splicing X-72 Disruptor... Unable to locate active power source. Splicing X-72 Disruptor... Deactivating 1 weapon system. Splicing X-72 Disruptor... Shutting down primary systems. X-72 Disruptor springs to life. KIZMV4N4W=SSSSGM =>MMCIGK>TEM UPCW System corrupted: Heat flow error (+256). X-72 Disruptor destroyed. Flexi-carbon Leg fries itself beyond repair. Imp. Arc Projector fries itself beyond repair. Insulated Plating fries itself beyond repair. Acquired 15 matter. Penetrated by Slug. Acquired Med. Treads. Penetrated by Slug. Map ----- +----------------------------------------------------+ | ?????????????????????????????????????????????????? | | ?????????????????????????????????????????????????? | | ?????????????????????????????????????????????????? | | ?????????????????????????????????????????????????? | | ?????????????????????????????????????????????????? | | ?????????????????????????????????????????????????? | | ?????????????????????????????????????????????????? | | ?????????????????????????????????????????????????? | | ?????????????????????????????????????????????????? | | ?????????????????????????????????????????????????? | | ?????????????????????????????????????????????????? | | ??????????????????????##?????????????????????????? | | ??????????????????????# ????????????????????? ???? | | ??????????????????????# ????????????????????? #??? | | ??????????????????????# ?????????????/????? ???? | | ??????????????????????# ??##?????????%#??? ????? | | ??????????????????????# ??# ##?????? #?? ?????? | | ??????????????????????# ??# #?????? ### ??????? | | ??????????????????????# ??# ##????? ???????? | | ??????????????????????# ???# ##???? ????????? | | ??????????????????????# ##?# ##???# #????????? | | ??????????????????????# #?# ##?## $##???????? | | ??????????????????????# ### ## " "#???????? | | ?????????????????????## ##; ;#???????# | | ????????????????????## % ;##?????## | | ????????????????????# !%@% ##????# | | ????????????????????# ## ##???# | | ????????????????? ???# ##### | | ?????????????? ?????# h | | ???????????# ### ???????# ### %% | | ?????????????????????????##########?# ######## | | ????????????????????????????????????# #?####?? | | ?????????????????????????##?????????### #### ##? | | ?????????????????????????#"###???????## ### ## | | ?????????????????????????## ##????###" ## | | ????????????????????????## #??### | | ???????????????????????## ####// #[% #### | | ???????????????????????# ^ ###/ [ " ####??? | | ???????????????????????# ^ ## " ##????? | | ???????????????########## ##/&! " #???## | | ??????#????????# #####/ "## % ##?## | | ????## ????????# ##?########### ### | | ???# """" ###### ##?#?#??##????## ## | | ???# #???## ###?#?????##??## ## | | ???# ######?### % ############???# | | ?????? ??? ???????# ##### ###????# | | ?????? ?? ?????### ##?#?## | | ??????? ?? ????## ^ ####### # | | ???????# ?? ???## #???## # | | ???????# ##"??## % ##??## # | +----------------------------------------------------+ Best States ------------- Heat Dissipation 48 Energy Generation 31 Energy Capacity 430 Matter Stores 300 Matter Capacity 300 Sight Range 16 Robot Scan Range 14 Terrain Scan Range 16 Terrain Scan Density 210 Jamming Range 8 Armor Coverage 625 Melee Speed Boost 20 Evasion (%) 55 Melee Accuracy 6 Recoil Reduction 4 Offensive Hacking 10 Defensive Hacking 10 Item Schematics ----------------- Datajack | -8/Materials | Hacked Lrg. Storage Unit | -8/Materials | Hacked Railgun | -6/Factory | Hacked Robot Schematics ------------------ None Fabricated ------------ Nothing Alien Tech Used ----------------- None Achievements -------------- None Challenges ------------ None Game ------ Seed HackingLauncherShredder Manual? 0 Play Time 00:48:55 Cumulative 201.4 hours Start 2021.06.12 @ 18:13:54 End 2021.06.12 @ 19:07:21 Sessions 1 Manual Loads 0 Difficulty Rogue Special Mode None Game No. 251 Rogue 251 Adventurer 0 Explorer 0 Win Type - Total 2 Types 2/0/0/0/0/0/0/0/0 Lore% 58 Gallery% 77 Achievement% 57 Wizard Run 0 Options --------- ASCII 0 Keyboard 0 Movement Mouse Keybinds 1 Fullscreen 2 Font 24/Smallcaps Map View 76x50 Tactical HUD 1 Map Filters NONE Filters NONE Steam 1 RUN: 07d0b0fa-777c-4d96-97fc-9da53c27d9f2